{"text_format":"3","workbook":"xlsx","n_sheets":1,"sheets":["Balanso lapas"],"not_rendered":{"defined_names":1},"read":"whole","date_system":"1900"}

{"sheet":"Balanso lapas","index":0,"n_rows":50,"n_cols":5,"rows_kept":50,"merged":[[0,0,0,4],[1,0,1,4],[2,0,2,4]]}
["Balanso lapas"]
["[Įmonės pavadinimas]"]
[{"$f":"NOW()","v":"2012-09-06T16:44:04.310"}]
[]
[{"$nulls":3},2003,2004]
["Turtas"]
["Trumpalaikis turtas:"]
["Pinigų kiekis įstaigoje"]
["Investicijos"]
["Atsargos"]
["Debitorinė sąskaita"]
["Iš anksto apmokėtos išlaidos"]
["Kita"]
["Visas trumpalaikis turtas",null,null,{"$f":"SUM(D8:D13)","v":{"v":0,"d":"0.00 Lt"}},{"$f":"SUM(E8:E13)","v":{"v":0,"d":"0.00 Lt"}}]
[]
["Pagrindiniai aktyvai:"]
["Turtas ir įranga"]
["Nuomojamo turto pagerinimas"]
["Kapitalas ir kitos investicijos"]
["Mažiau susikaupusių nuvertėjimų"]
["Grynasis ilgalaikis turtas",null,null,{"$f":"SUM(D17:D20)","v":{"v":0,"d":"0.00 Lt"}},{"$f":"SUM(E17:E20)","v":{"v":0,"d":"0.00 Lt"}}]
[]
["Kiti aktyvai:"]
["Prestižo vertė"]
["Visi kiti aktyvai",null,null,{"$f":"SUM(D24)","v":{"v":0,"d":"0.00 Lt"}},{"$f":"SUM(E24)","v":{"v":0,"d":"0.00 Lt"}}]
[]
["Visi aktyvai",null,null,{"$f":"D25+D21+D14","v":{"v":0,"d":"0.00 Lt"}},{"$f":"E25+E21+E14","v":{"v":0,"d":"0.00 Lt"}}]
[]
["Finansiniai įsipareigojimai ir savininko kapitalas"]
["Dabartiniai finansiniai įsipareigojimai:"]
["Tiekėjų įsiskolinimas"]
["Neišmokėti darbo užmokesčiai"]
["Neišmokėtos kompensacijos"]
["Mokėtinas pajamų mokestis"]
["Negautos pajamos"]
["Kita"]
["Visi dabartiniai finansiniai įsipareigojimai",null,null,{"$f":"SUM(D31:D36)","v":{"v":0,"d":"0.00 Lt"}},{"$f":"SUM(E31:E36)","v":{"v":0,"d":"0.00 Lt"}}]
[]
["Ilgalaikiai finansiniai įsipareigojimai:"]
["Mokėtina hipotekai suma"]
["Bendri ilgalaikiai finansiniai įsipareigojimai",null,null,{"$f":"SUM(D40)","v":{"v":0,"d":"0.00 Lt"}},{"$f":"SUM(E40)","v":{"v":0,"d":"0.00 Lt"}}]
[]
["Savininko kapitalas:"]
["Investicijų kapitalas"]
["Susikaupęs nepaskirstytasis pelnas"]
["Visas savininko kapitalas",null,null,{"$f":"SUM(D44:D45)","v":{"v":0,"d":"0.00 Lt"}},{"$f":"SUM(E44:E45)","v":{"v":0,"d":"0.00 Lt"}}]
[]
["Finansiniai įsipareigojimai ir savininko kapitalas",null,null,{"$f":"D46+D41+D37","v":{"v":0,"d":"0.00 Lt"}},{"$f":"E46+E41+E37","v":{"v":0,"d":"0.00 Lt"}}]
[{"$nulls":3},{"$f":"IF(D48>D27,\"Įsipareigojimai aukštesnis\",IF(D27>D48,\"Turtas aukštesnis\",\"Subalansuotas\"))","v":"Subalansuotas"},{"$f":"IF(E48>E27,\"Įsipareigojimai aukštesnis\",IF(E27>E48,\"Turtas aukštesnis\",\"Subalansuotas\"))","v":"Subalansuotas"}]
[null,null,"Skirtumas:",{"$f":"IF(D48>D27,D27-D48,IF(D27>D48,D48-D27,0))","v":{"v":0,"d":"0.00 Lt"}},{"$f":"IF(E48>E27,E27-E48,IF(E27>E48,E48-E27,0))","v":{"v":0,"d":"0.00 Lt"}}]